fUSD/lending_fUSD_20240312
["ID","MTS","AMOUNT","RATE_DAILY","PERIOD"]
[318553700,1710286239041,-666.666666,0.00019918,2]
[318553702,1710286239050,-666.666666,0.00019918,2]
[318553704,1710286239059,-666.666666,0.00019918,2]
[318553706,1710286239069,-666.666666,0.00019918,2]
[318553708,1710286239079,-666.666666,0.00019918,2]
[318553710,1710286239089,-666.666666,0.00019918,2]
[318553712,1710286239099,-1444.67,0.00019919,2]
[318553714,1710286239108,-1444.67,0.0001992,2]
[318553716,1710286239119,-1444.67,0.0001992,2]
[318553718,1710286239129,-296.50329409,0.00019927,2]
[318553720,1710286239139,-155.07389307,0.00019927,2]
[318553722,1710286239149,-205.88337639,0.00019927,2]
[318553723,1710286239158,-263.31827855,0.00019927,2]
[318553725,1710286239167,-1234.02736645,0.00019927,2]
[318553726,1710286239176,-329.77646999,0.00019927,2]
[318553727,1710286239186,-165.88459035,0.00019927,2]
[318553728,1710286239195,-162.04608308,0.00019927,2]
[318553729,1710286239204,-259.98513075,0.00019927,2]
[318553730,1710286239214,-758.22010475,0.00019927,2]
[318553731,1710286239223,-181.91602668,0.00019928,2]
[318553732,1710286239232,-252.08837664,0.00019929,2]
[318553733,1710286239241,-155.15332312,0.00019929,3]
[318553734,1710286239251,-155.0,0.00019929,2]
[318553735,1710286239260,-2474.70858379,0.00019929,2]
[318553736,1710286239270,-642.05570569,0.00019929,2]
[318553737,1710286239279,-1183.56443161,0.00019929,5]
[318553738,1710286239288,-5892.13804405,0.00019929,2]
[318553739,1710286239298,-13669.08323,0.00019929,2]
[318553740,1710286239308,-807.98290942,0.00019929,5]
[318553741,1710286239318,-807.98290942,0.00019929,5]
[318553742,1710286239328,-807.98290942,0.00019929,5]
[318553743,1710286239337,-807.98290942,0.00019929,5]
[318553744,1710286239346,-807.98290942,0.00019929,5]
[318553745,1710286239356,-807.98290942,0.00019929,5]
[318553746,1710286239365,-155621.17924975,0.0001993,2]
[318553747,1710286239377,-297765.50564201,0.0001993,2]
[318553748,1710286239386,-2000.0,0.0001993,2]
[318553749,1710286239395,-200.0,0.0001993,2]
[318553750,1710286239405,-1444.67,0.00019936,2]
[318553751,1710286239414,-156813.0686184,0.00019946,2]
[318553752,1710286239423,-7389.69,0.00019974,2]
[318553753,1710286239432,-1000.0,0.00019999,2]
[318553754,1710286239441,-399.17134535,0.00019999,2]
[318553755,1710286239450,-416.47605008,0.00019999,2]
[318553756,1710286239460,-500.0,0.00019999,2]
[318553757,1710286239469,-500.0,0.00019999,2]
[318553758,1710286239479,-500.0,0.00019999,2]
[318553759,1710286239488,-500.0,0.00019999,2]
[318553760,1710286239497,-500.0,0.00019999,2]
[318553761,1710286239506,-500.0,0.00019999,2]
[318553762,1710286239515,-500.0,0.00019999,2]
[318553763,1710286239524,-500.0,0.00019999,2]
[318553764,1710286239533,-500.0,0.00019999,2]
[318553765,1710286239542,-500.0,0.00019999,2]
[318553766,1710286239551,-400.0,0.00019999,2]
[318553767,1710286239560,-3312.58139544,0.0002,2]
[318553768,1710286239570,-363.01696923,0.0002,2]
[318553769,1710286239579,-11607.2656825,0.0002,30]
[318553770,1710286239588,-1785.53618659,0.0002,5]
[318553771,1710286239597,-34132.29629706,0.0002,2]
[318553772,1710286239606,-504.56573943,0.0002,2]
[318553773,1710286239615,-768.3067695,0.0002,2]
[318553774,1710286239623,-1847.01134335,0.0002,2]
[318553775,1710286239633,-278.36881284,0.0002,2]
[318553776,1710286239642,-405.7560142,0.0002,2]
[318553777,1710286239652,-1500.0,0.0002,2]
[318553778,1710286239660,-1890.944299,0.00020007,2]
[318553779,1710286239670,-1286.73576323,0.00020123,2]
[318553780,1710286239679,-2000.0,0.00020129,2]
[318553781,1710286239689,-200.0,0.00020129,2]
[318553782,1710286239698,-6997.56,0.0002014,2]
[318553783,1710286239707,-150.0,0.00020146,2]
[318553784,1710286239717,-7389.69,0.00020222,2]
[318553785,1710286239725,-2000.0,0.00020331,2]
[318553786,1710286239734,-200.0,0.00020331,2]
[318553787,1710286239745,-7389.69,0.0002047,2]
[318553788,1710286239754,-600.0,0.00020486,2]
[318553789,1710286239764,-1500.0,0.000205,2]
[318553790,1710286239776,-2000.0,0.00020534,2]
[318553791,1710286239786,-200.0,0.00020534,2]
[318553792,1710286239796,-209.267664,0.00020548,2]
[318553794,1710286239805,-2308.0,0.00020548,2]
[318553795,1710286239815,-400.0,0.00020624,2]
[318553796,1710286239825,-325.60950558,0.00020638,2]
[318553797,1710286239834,-807.98290942,0.00020717,5]
[318553798,1710286239843,-7389.69,0.00020718,2]
[318553799,1710286239854,-200.0,0.00020739,2]
[318553800,1710286239864,-155.73,0.00020776,2]
[318553801,1710286239873,-26455.64394547,0.00020815,2]
[318553802,1710286239883,-1444.67,0.00020896,2]
[318553803,1710286239892,-212.27002312,0.00020906,2]
[318553804,1710286239902,-328.21614352,0.00020906,3]
[318553805,1710286239912,-191.63793034,0.00020906,2]
[318553806,1710286239921,-186.96762535,0.00020906,3]
[318553807,1710286239931,-785.25644044,0.00020906,2]
[318553808,1710286239940,-5338.9200518,0.00020906,2]
[318553809,1710286239949,-7389.69,0.00020966,2]
[318553810,1710286239959,-666.666666,0.00020988,3]
[318553811,1710286239969,-666.666666,0.00020988,3]
[318553812,1710286239979,-666.666666,0.00020988,3]
[318553813,1710286239988,-666.666666,0.00020988,3]
[318553814,1710286239998,-666.666666,0.00020988,3]
[318553815,1710286240008,-666.666666,0.00020988,2]
[318553816,1710286240018,-666.666666,0.00020988,2]
[318553817,1710286240027,-666.666666,0.00020988,2]
[318553818,1710286240037,-666.666666,0.00020988,2]
[318553819,1710286240046,-666.666666,0.00020988,2]
[318553820,1710286240055,-3901.9020522,0.00021,7]
[318553821,1710286240065,-623.55282486,0.00021,2]
[318553822,1710286240075,-800.0,0.00021,3]
[318553823,1710286240085,-1500.0,0.00021,2]
[318553824,1710286240094,-1000.0,0.00021006,30]
[318553825,1710286240104,-160032.0,0.00021006,4]
[318553826,1710286240113,-165776.3977641,0.00021006,90]
[318553827,1710286240122,-487.1945237,0.00021006,120]
[318553828,1710286240131,-1000.0,0.00021006,120]
[318553829,1710286240141,-39954.82700789,0.00021006,30]
[318553830,1710286240153,-53928.05900102,0.00021006,30]
[318553831,1710286240271,-4878.80021856,0.00021006,30]
[318553832,1710286240284,-14249.3904,0.00021006,30]
[318553833,1710286240660,-1042.56559404,0.00021006,30]
[318553834,1710286240672,-6752.112,0.00021006,30]
[318553835,1710286240700,-3422.0,0.00021006,30]
[318553837,1710286240802,-38824.22899672,0.00021006,30]
[318553838,1710286240812,-73837.10751809,0.00021006,30]
[318553839,1710286240825,-262.05658189,0.00021006,30]
[318553840,1710286240837,-410.65610556,0.00021006,30]
[318553841,1710286241282,-281.292176,0.00021006,30]
[318553842,1710286241294,-79.74629904,0.00021006,30]
[318553843,1710286241304,-1000.0,0.00021006,30]
[318553844,1710286241314,-1140.94,0.00021006,30]
[318553845,1710286241324,-2398.07240192,0.00021006,120]
[318553846,1710286241336,-969.99000001,0.00021006,120]
[318553847,1710286241360,-142232.79938502,0.00021006,120]
[318553861,1710286243203,-3101.32455742,0.00021006,120]
[318553862,1710286243280,-2.846e-05,0.00021006,120]
[318553863,1710286243292,-8585.44377625,0.00021006,120]
[318553864,1710286243301,-1574.27392643,0.00021006,2]
[318553865,1710286243311,-780.43043528,0.00021006,2]
[318553866,1710286243320,-13944.83551467,0.00021006,2]
[318553867,1710286243330,-1000.0,0.00021006,2]
[318553868,1710286243339,-24547.15327264,0.00021006,2]
[318553869,1710286243350,-470.90830768,0.00021006,2]
[318553870,1710286243362,-559.18304166,0.00021006,2]
[318553871,1710286243443,-8393.52,0.00021006,2]
[318553875,1710286246244,-281.63677029,0.00021006,2]
[318553876,1710286246256,-927.66,0.00021006,2]
[318553877,1710286246334,-466.98214982,0.00021006,2]
[318553878,1710286246345,-2999.25809624,0.00021006,2]
[318553879,1710286246356,-36300.7083,0.00021006,2]
[318553880,1710286246367,-258.8084061,0.00021006,2]
[318553881,1710286246468,-3566.5434888,0.00021006,2]
[318553883,1710286260777,450.85336691,0.0001501,2]
[318553884,1710286436539,30000.0,0.000161,2]
[318553885,1710286455133,1000.0,0.00023,120]
[318553886,1710286494867,-678.68319313,0.00017539,2]
[318553887,1710286494890,-747.19,0.0001754,2]
[318553888,1710286494909,-1041.12680687,0.00018897,2]
[318553889,1710287242830,615.1652275,0.00016071,2]
[318553897,1710287383763,296.88884268,0.00016059,2]
[318553900,1710287389758,296.88884266,0.00016063,2]
[318553901,1710287395765,296.88884266,0.00016067,2]
[318553902,1710287427514,893.0,0.00015994,2]
[318553906,1710287432193,-157.96884838,0.00016153,2]
[318553907,1710287432202,-165.96962442,0.00016154,2]
[318553908,1710287432212,-1234.34264318,0.00016154,2]
[318553909,1710287432222,-1584.37283396,0.00016154,2]
[318553910,1710287432232,-1052.16994629,0.00016155,2]
[318553911,1710287432241,-678.68319313,0.00016156,2]
[318553912,1710287432250,-10421.91339404,0.00016157,2]
[318553913,1710287432260,-238.0,0.00016167,2]
[318553914,1710287432269,-150.0,0.00016167,2]
[318553915,1710287432278,-150.0,0.00016356,2]
[318553916,1710287432287,-299.99,0.00016379,4]
[318553917,1710287432297,-532.88,0.00016379,2]
[318553918,1710287432306,-224.99,0.00016379,2]
[318553919,1710287432315,-918.93,0.00016379,2]
[318553920,1710287432325,-174.84,0.00017771,2]
[318553921,1710287432334,-9999.99,0.00017771,2]
[318553922,1710287432344,-210.0,0.00017784,2]
[318553923,1710287432353,-163.09517929,0.00017797,2]
[318553924,1710287432362,-200.0,0.00017833,2]
[318553925,1710287432370,-23900.0,0.00017891,2]
[318553926,1710287432379,-5000.0,0.00017893,2]
[318553927,1710287432389,-656.32,0.00017933,2]
[318553928,1710287432398,-159.17,0.00017991,2]
[318553929,1710287432407,-20688.02936235,0.00018,2]
[318553930,1710287432416,-3573.68,0.00018036,2]
[318553931,1710287432424,-159.17,0.00018125,2]
[318553932,1710287432433,-250.0,0.00018161,2]
[318553933,1710287432442,-200.0,0.00018188,2]
[318553934,1710287432451,-3364.11,0.00018197,2]
[318553935,1710287432460,-243.74,0.00018227,2]
[318553936,1710287432469,-395.51,0.00018252,2]
[318553937,1710287432478,-893.0,0.00018258,2]
[318553938,1710287432487,-159.17,0.00018259,2]
[318553939,1710287432497,-500.0,0.00018365,2]
[318553940,1710287432506,-159.17,0.00018393,2]
[318553941,1710287432515,-150.99,0.00018404,2]
[318553942,1710287432524,-200.0,0.0001847,2]
[318553943,1710287432533,-2370.77,0.0001847,2]
[318553944,1710287432542,-200.0,0.00018498,2]
[318553945,1710287432551,-159.17,0.00018527,2]
[318553946,1710287432560,-159.17,0.00018661,2]
[318553947,1710287432569,-159.17,0.00018795,2]
[318553948,1710287432578,-200.0,0.0001885,2]
[318553949,1710287432587,-159.17,0.00018928,2]
[318553950,1710287432597,-750.0,0.00019,3]
[318553951,1710287432607,-465.72731021,0.00019077,2]
[318553953,1710287432615,-6326.6324,0.00019078,2]
[318553955,1710287432625,-272.4,0.00019123,2]
[318553956,1710287432634,-250.0,0.00019178,2]
[318553958,1710287432643,-6187.1611658,0.00019178,2]
[318553961,1710287432656,-3812.8388342,0.00019178,2]
[318553963,1710287432665,-155.73,0.00019178,2]
[318553965,1710287432674,-531.81,0.00019245,2]
[318553967,1710287432688,-150.99,0.00019267,2]
[318553969,1710287432698,-499.99,0.00019272,2]
[318553971,1710287432708,-920.0,0.00019281,2]
[318553973,1710287432718,-29466.504,0.00019281,2]
[318553975,1710287432728,-211.0,0.00019453,2]
[318553977,1710287432737,-222.0,0.00019562,2]
[318553978,1710287432746,-180.0,0.00019621,2]
[318553979,1710287432755,-1000.0,0.00019624,2]
[318553980,1710287432765,-208.2365,0.00019626,2]
[318553981,1710287432775,-1000.0,0.00019722,2]
[318553982,1710287432784,-155.07389307,0.00019722,2]
[318553983,1710287432794,-329.77646999,0.00019723,2]
[318553984,1710287432803,-263.31827855,0.00019723,2]
[318553985,1710287432812,-477.73202404,0.00019723,2]
[318553986,1710287432828,-13191.35120596,0.00019723,2]
[318553987,1710287432837,-155.0,0.00019723,2]
[318553988,1710287432847,-296.50329409,0.00019723,2]
[318553989,1710287432856,-758.22010475,0.00019723,2]
[318553990,1710287432866,-542.47838598,0.00019724,2]
[318553991,1710287432875,-205.88337639,0.00019724,2]
[318553992,1710287432885,-1183.56443161,0.00019724,5]
[318553993,1710287432895,-259.98513075,0.00019724,2]
[318553994,1710287432906,-2474.70858379,0.00019724,2]
[318553995,1710287432915,-162.04608308,0.00019724,2]
[318553996,1710287432924,-5892.13804405,0.00019724,2]
[318553997,1710287432934,-252.08837664,0.00019724,2]
[318553998,1710287432943,-642.05570569,0.00019724,2]
[318553999,1710287432953,-155.15332312,0.00019724,2]
[318554000,1710287432962,-181.91602668,0.00019724,2]
[318554001,1710287432971,-558.37061314,0.00019725,2]
[318554002,1710287432981,-4429.8657748,0.00019725,2]
[318554003,1710287432990,-2154.65755534,0.00019726,2]
[318554004,1710287433015,-615.57419019,0.00019726,2]
[318554005,1710287433236,-2935.81856465,0.00019726,2]
[318554006,1710287433249,-759.92968982,0.00019726,2]
[318554007,1710287433258,-1145.77031018,0.000198,2]
[318554008,1710287433314,-687.20000001,0.000198,2]
[318554009,1710287433326,-20.20738981,0.000198,2]
[318554010,1710287433335,-157.35,0.00019888,2]
[318554011,1710287433345,-625.20121565,0.0001989,2]
[318554012,1710287433354,-1059.22417395,0.00019897,2]
[318554013,1710287433363,-3480.86272574,0.00019898,2]
[318554014,1710287433378,-8475.21957426,0.00019898,2]
[318554015,1710287433387,-1016.45,0.000199,2]
[318554016,1710287433396,-1342.902,0.000199,2]
[318554017,1710287433407,-10223.7439,0.000199,2]
[318554018,1710287433416,-1000.0,0.000199,2]
[318554019,1710287433425,-244.20712922,0.000199,2]
[318554020,1710287433434,-169.98529053,0.00019954,2]
[318554021,1710287433444,-6465.98,0.00019974,2]
[318554022,1710287433453,-51327.45388188,0.00019998,2]
[318554023,1710287433462,-358.88996259,0.0002,2]
[318554024,1710287433474,-30000.0,0.0002,30]
[318554025,1710287433483,-1785.53618659,0.0002,5]
[318554026,1710287433492,-1847.01134335,0.0002,2]
[318554027,1710287433503,-405.7560142,0.0002,2]
[318554028,1710287433513,-278.36881284,0.0002,2]
[318554029,1710287433522,-504.56573943,0.0002,2]
[318554030,1710287433531,-34132.29629706,0.0002,2]
[318554031,1710287433540,-768.3067695,0.0002,2]
[318554032,1710287433554,-1500.0,0.0002,2]
[318554033,1710287433563,-157.35,0.0002001,2]
[318554034,1710287433572,-167.58,0.00020014,2]
[318554035,1710287433582,-162.5,0.00020014,2]
[318554036,1710287433591,-157.35,0.00020132,2]
[318554037,1710287433601,-6465.98,0.00020222,2]
[318554038,1710287433610,-157.35,0.00020255,2]
[318554039,1710287433619,-157.35,0.00020377,2]
[318554040,1710287433628,-6465.98,0.0002047,2]
[318554041,1710287433638,-157.35,0.000205,2]
[318554042,1710287433647,-1500.0,0.000205,2]
[318554043,1710287433656,-893.0,0.00020522,2]
[318554044,1710287433666,-793.36788161,0.00020564,2]
[318554045,1710287433675,-157.35,0.00020622,2]
[318554046,1710287433684,-6465.98,0.00020718,2]
[318554047,1710287433693,-157.35,0.00020744,2]
[318554048,1710287433702,-3000.0,0.000208,2]
[318554049,1710287433711,-1890.944299,0.00020806,2]
[318554050,1710287433720,-314.83533192,0.00020828,2]
[318554051,1710287433729,-200.0,0.00020838,2]
[318554052,1710287433740,-157.35,0.00020867,2]
[318554053,1710287433748,-300.0,0.00020904,2]
[318554054,1710287433758,-484.78974565,0.00020905,5]
[318554055,1710287433767,-50023.94267234,0.00020906,2]
[318554056,1710287433788,-750.0,0.00020906,2]
[318554063,1710287438260,-678.68319313,0.00016152,2]
[318554065,1710287438269,-150.0,0.00017879,2]
[318554067,1710287438279,-2751.0,0.00019803,2]
[318554069,1710287438288,-49226.05732766,0.00020906,2]
[318554071,1710287438297,-500.0,0.00020906,2]
[318554072,1710287438307,-2716.7572,0.00020906,2]
[318554074,1710287438316,-1000.0,0.00020906,2]
[318554075,1710287438325,-97131.5704,0.00020906,2]
[318554076,1710287438334,-163.09517929,0.00020927,2]
[318554077,1710287438344,-153.49256383,0.00020927,2]
[318554078,1710287438354,-151.87411758,0.00020927,2]
[318554079,1710287438363,-24519.53871711,0.00020928,2]
[318554080,1710287438372,-317.35191857,0.00020928,2]
[318554081,1710287438382,-191.63793034,0.00020928,2]
[318554082,1710287438391,-328.21614352,0.00020928,3]
[318554083,1710287438400,-186.96762535,0.00020928,3]
[318554084,1710287438409,-3364.11,0.00020936,2]
[318554085,1710287438418,-6465.98,0.00020966,2]
[318554086,1710287438427,-666.666666,0.00020979,2]
[318554087,1710287438436,-666.666666,0.00020979,2]
[318554088,1710287438445,-666.666666,0.00020979,2]
[318554089,1710287438454,-666.666666,0.00020979,2]
[318554090,1710287438463,-666.666666,0.00020979,3]
[318554091,1710287438472,-666.666666,0.00020979,3]
[318554092,1710287438481,-666.666666,0.00020979,3]
[318554093,1710287438490,-666.666666,0.00020979,3]
[318554094,1710287438499,-666.666666,0.00020979,3]
[318554095,1710287438508,-666.666666,0.00020979,3]
[318554096,1710287438517,-666.666666,0.00020979,3]
[318554097,1710287438526,-666.666666,0.00020979,3]
[318554098,1710287438535,-666.666666,0.00020979,3]
[318554099,1710287438544,-666.666666,0.00020979,3]
[318554100,1710287438553,-666.666666,0.00020979,3]
[318554101,1710287438563,-777.666666,0.00020979,2]
[318554102,1710287438573,-777.666666,0.00020979,2]
[318554103,1710287438582,-777.666666,0.00020979,3]
[318554104,1710287438591,-777.666666,0.00020979,3]
[318554105,1710287438601,-216.86963432,0.00020983,2]
[318554106,1710287438610,-666.666666,0.00020988,2]
[318554107,1710287438619,-666.666666,0.00020988,2]
[318554108,1710287438628,-666.666666,0.00020988,2]
[318554109,1710287438637,-666.666666,0.00020988,3]
[318554110,1710287438647,-666.666666,0.00020988,3]
[318554111,1710287438656,-666.666666,0.00020988,3]
[318554112,1710287438665,-666.666666,0.00020988,3]
[318554113,1710287438675,-666.666666,0.00020988,3]
[318554114,1710287438684,-666.666666,0.00020988,3]
[318554115,1710287438693,-666.666666,0.00020988,3]
[318554116,1710287438702,-777.666666,0.00020988,2]
[318554117,1710287438710,-777.666666,0.00020988,2]
[318554118,1710287438719,-157.35,0.00020989,2]
[318554119,1710287438728,-484.78974565,0.00020995,5]
[318554123,1710287438929,-2757.63968707,0.00020996,2]
[318554124,1710287438942,-1972.43632703,0.00020996,2]
[318554125,1710287438952,-2600.6248805,0.00020996,2]
[318554126,1710287438964,-375.26000015,0.00020996,2]
[318554127,1710287438980,-6062.9094044,0.00020996,2]
[318554128,1710287438991,-3499.018068,0.00020996,2]
[318554129,1710287439022,-210273.04633819,0.00020996,2]
[318554130,1710287439035,-87633.41265206,0.00020996,2]
[318554131,1710287439044,-11189.6826488,0.00020996,2]
[318554132,1710287439054,-15555.8564069,0.00020996,2]
[318554133,1710287439063,-666.666666,0.00020998,3]
[318554134,1710287439073,-666.666666,0.00020998,3]
[318554135,1710287439082,-666.666666,0.00020998,2]
[318554136,1710287439092,-350.666666,0.00020998,2]
[318554137,1710287439102,-666.666666,0.00020998,2]
[318554138,1710287439111,-666.666666,0.00020998,2]
[318554139,1710287439121,-666.666666,0.00020998,2]
[318554140,1710287439132,-666.666666,0.00020998,2]
[318554141,1710287439141,-666.666666,0.00020998,2]
[318554142,1710287439150,-666.666666,0.00020998,2]
[318554143,1710287439159,-666.666666,0.00020998,2]
[318554144,1710287439169,-666.666666,0.00020998,3]
[318554145,1710287439179,-666.666666,0.00020998,3]
[318554146,1710287439188,-666.666666,0.00020998,3]
[318554147,1710287439197,-666.666666,0.00020998,3]
[318554148,1710287439207,-666.666666,0.00020998,3]
[318554149,1710287439217,-666.666666,0.00020998,3]
[318554150,1710287439226,-666.666666,0.00020998,3]
[318554151,1710287439236,-666.666666,0.00020998,3]
[318554152,1710287439246,-666.666666,0.00020999,3]
[318554153,1710287439255,-666.666666,0.00020999,3]
[318554154,1710287439264,-666.666666,0.00020999,3]
[318554155,1710287439273,-666.666666,0.00020999,2]
[318554156,1710287439282,-666.666666,0.00020999,2]
[318554157,1710287439291,-2000.0,0.00021,2]
[318554158,1710287439301,-800.0,0.00021,3]
[318554159,1710287439310,-623.55282486,0.00021,2]
[318554160,1710287439319,-1000.0,0.00021,2]
[318554161,1710287439328,-1500.0,0.00021,2]
[318554162,1710287439337,-700.0,0.00021,2]
[318554163,1710287439346,-2633.98703164,0.00021004,2]
[318554164,1710287439355,-160.64278934,0.00021004,2]
[318554165,1710287439365,-197.11789868,0.00021004,2]
[318554166,1710287439374,-3901.9020522,0.00021004,7]
[318554167,1710287439383,-1000.0,0.00021005,2]
[318554168,1710287439392,-1000.0,0.00021005,2]
[318554169,1710287439401,-2690.47436381,0.00021005,2]
[318554170,1710287439410,-379.70688865,0.00021015,5]
[318554171,1710287439419,-27059.83257907,0.00021028,2]
[318554172,1710287439428,-155.26560493,0.00021028,2]
[318554173,1710287439437,-196.36042481,0.00021028,2]
[318554174,1710287439446,-4359.74956249,0.00021028,120]
[318554175,1710287439455,-54667.54057117,0.00021028,120]
[318554176,1710287439464,-160.73393136,0.00021028,120]
[318554177,1710287439473,-3342.40238365,0.00021028,120]
[318554178,1710287439481,-152.09683965,0.00021028,120]
[318554179,1710287439490,-500.0,0.00021028,30]
[318554180,1710287439500,-4531.9723473,0.00021028,2]
[318554181,1710287439509,-291.71042411,0.00021028,120]
[318554182,1710287439518,-187.10557455,0.00021028,120]
[318554183,1710287439526,-360.71856225,0.00021028,120]
[318554184,1710287439536,-158.97924706,0.00021028,120]
[318554185,1710287439545,-3881.6448806,0.00021028,120]
[318554186,1710287439554,-630408.36950608,0.00021028,120]
[318554187,1710287439563,-3168.81446182,0.00021028,120]
[318554188,1710287439572,-1044.61686193,0.00021028,2]
[318554189,1710287439584,-671.7246078,0.00021028,120]
[318554190,1710287439595,-368.25317311,0.00021028,30]
[318554191,1710287439604,-774.03777472,0.00021028,120]
[318554192,1710287439613,-1857.46804445,0.00021028,120]
[318554193,1710287439622,-7632.45527609,0.00021028,120]
[318554194,1710287439631,-1072.27111718,0.00021028,120]
[318554195,1710287439640,-807.71087628,0.00021028,120]
[318554196,1710287439649,-23764.38775721,0.00021028,120]
[318554197,1710287439658,-370.67519476,0.00021028,120]
[318554198,1710287439667,-1817.60821528,0.00021028,120]
[318554199,1710287439676,-379.98626262,0.00021028,120]
[318554200,1710287439685,-5447.57493619,0.00021028,45]
[318554201,1710287439695,-3156.7672366,0.00021028,120]
[318554202,1710287439704,-477.24950502,0.00021028,120]
[318554203,1710287439712,-510.18805001,0.00021028,120]
[318554204,1710287439721,-500.0,0.00021028,7]
[318554205,1710287439730,-503.30684421,0.00021028,120]
[318554206,1710287439739,-541.33456195,0.00021028,14]
[318554207,1710287439747,-14762.2623804,0.00021028,120]
[318554208,1710287439756,-495.95274755,0.00021028,120]
[318554209,1710287439765,-49820.5361348,0.00021028,7]
[318554210,1710287439781,-4228.8,0.00021028,7]
[318554211,1710287439792,-1059.53492,0.00021028,7]
[318554212,1710287439803,-596.05964064,0.00021028,7]
[318554213,1710287439814,-277.0527081,0.00021028,7]
[318554214,1710287439825,-251.60714365,0.00021028,7]
[318554215,1710287439891,-253.3534719,0.00020818,2]
[318554216,1710287439904,-484.5265281,0.00020818,2]
[318554217,1710287439913,-137.4134719,0.00021028,7]
[318554218,1710287439934,-10407.06256735,0.00021028,7]
[318554219,1710287439945,-11836.4527189,0.00021028,7]
[318554220,1710287439955,-21790.3485207,0.00021028,7]
[318554221,1710287440397,-375.61444,0.00020896,2]
[318554222,1710287440408,-273.0,0.00020896,2]
[318554232,1710287441221,-89.26556,0.00020896,2]
[318554233,1710287441230,-737.88,0.00020986,2]
[318554234,1710287441239,-598.0382,0.00020986,2]
[318554235,1710287441250,-139.8418,0.00020986,2]
[318554236,1710287441260,-737.88,0.00021018,2]
[318554237,1710287441269,-737.88,0.00021018,2]
[318554238,1710287441278,-737.88,0.00021018,2]
[318554239,1710287441287,-737.88,0.00021018,2]
[318554240,1710287441297,-139355.16320744,0.00021028,7]
[318554241,1710287441312,-446.82755966,0.00021028,7]
[318554242,1710287441323,-637.70178208,0.00021028,7]
[318554243,1710287441333,-9958.86997803,0.00021028,7]
[318554244,1710287441514,-737.88,0.00021018,2]
[318554245,1710287441524,-132712.64116998,0.00021028,7]
[318554246,1710287441535,-299.82681749,0.00021028,7]
[318554247,1710287441574,-3006.1558,0.00021028,7]
[318554248,1710287441585,-846.05740198,0.00021028,7]
[318554249,1710287441597,-5895.2515794,0.00021028,7]
[318554250,1710287441609,-2336.71306577,0.00021028,7]
[318554251,1710287441620,-301.00890464,0.00021028,7]
[318554252,1710287441716,-53600.47743161,0.00021028,7]
[318554253,1710287441731,-608.2336114,0.00021028,7]
[318554254,1710287441742,-86357.59777385,0.00021028,7]
[318554279,1710287443258,-737.88,0.00021018,2]
[318554280,1710287443268,-2208.90347453,0.00021028,7]
[318554281,1710287443279,-12979.76032735,0.00021028,7]
[318554282,1710287443316,-2816.40928917,0.00021027,2]
[318554283,1710287443325,-334.79414175,0.00021028,7]
[318554284,1710287443338,-1784.20434834,0.00021028,7]
[318554285,1710287443352,-3200.76872679,0.00021028,7]
[318554286,1710287443363,-4691.03031592,0.00021028,7]
[318554287,1710287443374,-5753.72585808,0.00021028,7]
[318554288,1710287443387,-818625.40772549,0.00021028,7]
[318554289,1710287443402,-4815.25623061,0.00021028,7]
[318554290,1710287443414,-1763.43178995,0.00021028,7]
[318554291,1710287443441,-300.175,0.00021017,2]
[318554292,1710287443497,-139.2728505,0.00021017,2]
[318554293,1710287443506,-157.48487182,0.00021017,2]
[318554294,1710287443515,-257.08898764,0.00021028,7]
[318554299,1710287446734,-1052.16994629,0.00020817,2]
[318554300,1710287446743,-202.91765723,0.00021017,2]
[318554301,1710287446753,-521.69354048,0.00021028,7]
[318554302,1710287446764,-1219.88975369,0.00021028,7]
[318554303,1710287446811,-6156.91208171,0.00021028,7]
[318554304,1710287491440,278.15336143,0.00015,2]
[318554305,1710287549358,153.07288987,0.00015,2]
[318554306,1710287891059,806.59,0.00015571,2]